Cogmind - Beta 11 @@@ ROGUE MODE // 2022.04.17 @ 21:38:58 Player: Kaeteker Result: Destroyed by G-47 Trooper with Particle Gun Performance ------------- Evolutions (2) 1000 Regions Visited (4) 800 Robots Destroyed (31) 155 Value Destroyed (791) 791 Prototype IDs (4) 80 Alien Tech Used (0) 0 Bonus (155) 155 TOTAL SCORE: 2981 Bonus ------- Follower Combat Kills 175 Friendly Fire -20 Cogmind --------- Core Integrity 0/550 Matter 442/500 Energy 19/265 System Corruption 0% Temperature Cool (9) Movement Walking (260) Ox2 Location -8/Materials Parts ------- > --- POWER (1) -------- Improved Ion Engine > --- PROPULSION (3) --- Improved Aluminum Leg > --- UTILITY (5) ------ Large Storage Unit High-capacity Matter Pod Visual Processing Unit Utility Shielding > --- WEAPON (2) ------- Improved Assault Rifle > --- INVENTORY (15) --- Improved Aluminum Leg Disposable Heat Sink Peak State ------------ > --- POWER ------------ Nuclear Core > --- PROPULSION ------- Improved Aluminum Leg Improved Aluminum Leg Carbon-fiber Leg > --- UTILITY ---------- Large Storage Unit Visual Processing Unit Improved Terrain Scanner Melee Analysis Suite > --- WEAPON ----------- Field Laser Minigun > --- INVENTORY -------- Improved Ion Engine Improved Aluminum Leg Improved Aluminum Leg Disposable Heat Sink High-capacity Matter Pod Utility Shielding Shield Generator Medium Laser Improved Assault Rifle Flak Cannon Datajack [Rating: 27] Favorites ----------- Power Ion Engine Engine Ion Engine Power Core Nuclear Core Propulsion Improved Aluminum Leg Leg Improved Aluminum Leg Utility Large Storage Unit Device Improved Terrain Scanner Storage Large Storage Unit Processor Visual Processing Unit Protection Light Armor Plating Weapon Medium Laser Energy Gun Medium Laser Ballistic Gun Minigun Ballistic Cannon Flak Cannon Slashing Weapon Mining Claw Special Melee Weapon Datajack Build | -11 -10 -10 -9 -8 ------- Run | Scr Mat Min Mat Mat Slots Evolved 4 | . . . 2 2 Power . | . . . . . Propulsion 1 | . . . 1 . Utility 3 | . . . 1 2 Weapon . | . . . . . Parts Attached 47 | 6 7 1 8 25 Power 7 | 1 1 . 2 3 Engine 5 | 1 1 . 2 1 Core 2 | . . . . 2 Reactor . | . . . . . Propulsion 9 | 2 2 . 1 4 Treads . | . . . . . Leg 9 | 2 2 . 1 4 Wheel . | . . . . . Hover . | . . . . . Flight . | . . . . . Utility 15 | 1 2 . 2 10 Device 6 | 1 1 . 1 3 Storage 2 | . 1 . . 1 Processor 2 | . . . . 2 Hackware . | . . . . . Protection 5 | . . . 1 4 Artifact . | . . . . . Weapon 16 | 2 2 1 3 8 Energy Gun 7 | 1 2 . 1 3 Energy Cannon . | . . . . . Ballistic Gun 6 | 1 . . 2 3 Ballistic Cannon 1 | . . . . 1 Launcher . | . . . . . Special Weapon . | . . . . . Impact Weapon . | . . . . . Slashing Weapon 1 | . . 1 . . Piercing Weapon . | . . . . . Special Melee Weapon 1 | . . . . 1 Unidentified Prototypes 2 | . . . 2 . Parts Lost 22 | . 2 . 1 19 Power 3 | . 1 . . 2 Propulsion 3 | . . . . 3 Utility 10 | . . . 1 9 Weapon 6 | . 1 . . 5 Highest Loss Streak 8 | . 2 . 1 8 To Critical Strikes . | . . . . . Average Slot Usage (%) 95 | . 96 100 97 90 Engine 10 | . 13 14 8 4 Leg 27 | . 28 28 33 23 Device 13 | . 13 14 18 8 Storage 11 | . 12 14 11 9 Processor 3 | . . . . 12 Protection 3 | . . . 3 11 Energy Gun 13 | . 22 22 4 . Ballistic Gun 5 | . 5 . 6 7 Slashing Weapon 4 | . . 5 11 7 Naked Turns . | . . . . . Heaviest Build 38 | 6 30 30 36 38 Greatest Support 41 | 20 26 26 39 41 Greatest Overweight (x) 7 | . 1 1 . 7 Average Overweight (x) . | . . 1 . . Largest Inventory Capacity 15 | 5 15 15 15 15 Average Capacity 14 | 5 14 15 15 15 Most Carried 15 | 3 15 15 15 15 Average Carried 11 | 1 10 14 14 12 Final Capacity 15 | 5 15 15 15 15 Final Carried 15 | 2 15 15 15 2 Class Distribution -------------------- 100% | Mutant Dominant Class ---------------- Mutant | -10/Materials Mutant | -10/Mines Mutant | -9/Materials Mutant | -8/Materials Resources | -11 -10 -10 -9 -8 ----------- Run | Scr Mat Min Mat Mat Matter Collected 829 | 273 63 60 276 157 Remotely . | . . . . . Salvage Created 991 | 70 210 14 180 517 Parts 78 | 4 19 4 10 41 Haulers Intercepted 1 | . . . 1 . Recyclers Shooed 1 | . . 1 . . Parts Field Recycled . | . . . . . Retrieved Matter . | . . . . . Parts Self-Destructed . | . . . . . Prevented . | . . . . . Kills | -11 -10 -10 -9 -8 ------- Run | Scr Mat Min Mat Mat Combat Hostiles Destroyed 22 | 1 8 . 2 11 Melee 8 | . . . 2 6 Guns 14 | 1 8 . . 5 Classes Destroyed 9 | 2 2 . 2 3 Tunneler 5 | 2 . 1 . 2 Hauler 1 | . . . 1 . Operator 1 | . . . . 1 Watcher 2 | . 1 . 1 . Swarmer 6 | . 5 . . 1 Cutter 2 | . . . . 2 Grunt 8 | 1 3 . . 4 Duelist 1 | . . . . 1 Sentry 5 | . . . 2 3 Best Kill Streak 5 | 1 5 1 2 3 Combat Bots Only 5 | 1 5 . 2 3 Max Kills in Single Turn 2 | 1 2 1 1 1 Gunslinging 1 | . 1 . . . Exploded . | . . . . . Melee 1 | . . . 1 1 Uniques/NPCs Destroyed . | . . . . . Combat | -11 -10 -10 -9 -8 -------- Run | Scr Mat Min Mat Mat Damage Taken 2962 | 21 403 24 227 2287 Core 685 | . 95 8 21 561 Absorbed by Shields 7 | . . . . 7 Redirected to Shielding 38 | . . . . 38 Regen/Repaired (Parts) 71 | . 21 . . 50 Core Remaining (%) 84 | 100 . 58 94 . Volleys Fired 80 | 13 29 . 12 26 Largest 2 | 2 2 . 1 2 Hottest 100 | 60 100 . 23 88 Shots Fired 120 | 26 51 . 12 31 Gun 120 | 26 51 . 12 31 Cannon . | . . . . . Launcher . | . . . . . Special . | . . . . . Kinetic 57 | 13 21 . 12 11 Thermal 63 | 13 30 . . 20 Explosive . | . . . . . Electromagnetic . | . . . . . Robot Hit Streak 9 | 7 8 . 9 6 Robot Miss Streak 6 | 4 6 . 2 3 Penetration Max . | . . . . . Secondary Targets 3 | . 2 . . 1 Max Gunslinging Chain 1 | . 1 . . 1 Shots Hit Robots 109 | 17 28 3 16 45 Core Hits 49 | 5 17 1 6 20 Critical Kills . | . . . . . Critical Parts Destroyed 1 | . . . . 1 Critical Strikes 1 | . . . . 1 Destroy 1 | . . . . 1 Melee Attacks 48 | . . 3 12 33 Impact . | . . . . . Slashing 47 | . . 3 12 32 Piercing . | . . . . . Sneak Attacks 6 | . . 2 1 3 Combat Hostiles . | . . . . . Follow-up Attacks . | . . . . . Damage Inflicted 1922 | 167 322 132 334 967 Guns 996 | 167 322 . 169 338 Cannons . | . . . . . Explosions . | . . . . . Melee 915 | . . 121 165 629 Ramming 11 | . . 11 . . Kinetic 497 | 69 120 . 169 139 Thermal 499 | 98 202 . . 199 Explosive . | . . . . . Electromagnetic . | . . . . . Impact . | . . . . . Slashing 915 | . . 121 165 629 Piercing . | . . . . . Highest Corruption . | . . . . . Average Corruption . | . . . . . Corruption Purged . | . . . . . Corruption Blocked . | . . . . . Overload Shots . | . . . . . Overflow Damage 47 | . . 9 3 35 Projectiles . | . . . . . Explosions . | . . . . . Melee 47 | . . 9 3 35 Knockbacks . | . . . . . Impact . | . . . . . Kinetic . | . . . . . Secondary . | . . . . . Self-Inflicted Damage . | . . . . . Shots . | . . . . . Rammed . | . . . . . Targets Rammed 1 | . . 1 . . Kicked 1 | . . 1 . . Crushed . | . . . . . Highest Temperature 89 | 46 89 . . 74 Average Temperature 34 | 17 43 . . 26 Received Heat Transfer 891 | 12 183 . 78 618 Siege Activations . | . . . . . Robots Corrupted . | . . . . . Combat Hostiles . | . . . . . Parts Fried . | . . . . . Impact Corruptions . | . . . . . Robots Melted . | . . . . . Combat Hostiles . | . . . . . Parts Melted . | . . . . . Heat Transferred 1230 | 225 487 . . 518 Parts Sabotaged . | . . . . . Parts Stolen . | . . . . . Parts Stripped . | . . . . . Power Chain Reactions . | . . . . . Missiles Intercepted . | . . . . . Alert | -11 -10 -10 -9 -8 ------- Run | Scr Mat Min Mat Mat Peak Influence 250 | 30 236 5 250 154 Initial 20 | . 19 . . 20 Average 53 | 12 56 1 102 64 Maximum Alert Level 1 | . 1 . 1 . Low Security (%) 93 | 100 89 100 85 100 Level 1 6 | . 10 . 14 . Level 2 . | . . . . . Level 3 . | . . . . . Level 4 . | . . . . . Level 5 . | . . . . . High Security . | . . . . . Max Security . | . . . . . Squads Dispatched 3 | . 1 . . 2 Investigation . | . . . . . Extermination . | . . . . . Reinforcement 3 | . 1 . . 2 Assault . | . . . . . Garrison . | . . . . . Intercept . | . . . . . Searches Triggered . | . . . . . Construction Impeded . | . . . . . Haulers Reinforced . | . . . . . Active Scanning Responses . | . . . . . Cargo Convoy Interrupts . | . . . . . Stealth | -11 -10 -10 -9 -8 --------- Run | Scr Mat Min Mat Mat Distress Signals 2 | . 2 . . . Communications Jammed . | . . . . . Distress Signals . | . . . . . Times Spotted 53 | 1 18 . 11 23 Peak Tracking Total 10 | 1 8 . 5 10 Tactical Retreats 2 | . . . . 2 Traps | -11 -10 -10 -9 -8 ------- Run | Scr Mat Min Mat Mat Traps Triggered 1 | . . 1 . . Indirectly . | . . . . . Trap Hack Attempts . | . . . . . Triggered . | . . . . . Disarmed . | . . . . . Reprogrammed . | . . . . . Reused . | . . . . . Traps Extracted . | . . . . . Installed . | . . . . . Triggered . | . . . . . Machines | -11 -10 -10 -9 -8 ---------- Run | Scr Mat Min Mat Mat Machines Disabled . | . . . . . Max in Single Turn . | . . . . . Machines Sabotaged . | . . . . . Garrisons Compromised . | . . . . . Overloaded Fab Kills . | . . . . . Hacking | -11 -10 -10 -9 -8 --------- Run | Scr Mat Min Mat Mat Machines Accessed 12 | . 4 1 4 3 Terminals 6 | . 2 . 2 2 Fabricators . | . . . . . Repair Stations 2 | . 1 . . 1 Recycling Units 1 | . 1 . . . Scanalyzers 2 | . . . 2 . Garrison Access . | . . . . . Total Hacks 36 | . 9 1 17 9 Successful 28 | . 6 1 15 6 Failed 8 | . 3 . 2 3 Catastrophic . | . . . . . Database Lockouts . | . . . . . Manual . | . . . . . Terminals 17 | . 5 . 7 5 Fabricators . | . . . . . Repair Stations 6 | . 2 . . 4 Recycling Units 2 | . 2 . . . Scanalyzers 10 | . . . 10 . Garrison Access . | . . . . . Terminal Hacks 11 | . 2 1 5 3 Record 2 | . . . . 2 Prototype ID Bank 1 | . . . . 1 Open Door 1 | . . 1 . . Branch Access Points 1 | . 1 . . . Alert Level 1 | . . . 1 . Locate Traps 1 | . . . 1 . Dispatch Records 1 | . 1 . . . Investigation Status 1 | . . . 1 . Hauler Manifests 1 | . . . 1 . Zone Layout 1 | . . . 1 . Fabricator Hacks . | . . . . . Repair Station Hacks 5 | . 2 . . 3 Scan Component 3 | . 1 . . 2 Repair 2 | . 1 . . 1 Recycling Unit Hacks 2 | . 2 . . . Process 1 | . 1 . . . Report Inventory 1 | . 1 . . . Scanalyzer 10 | . . . 10 . Insert Component 5 | . . . 5 . Analyze 5 | . . . 5 . Garrison Access Hacks . | . . . . . Unauthorized Hacks . | . . . . . Terminals . | . . . . . Fabricators . | . . . . . Repair Stations . | . . . . . Recycling Units . | . . . . . Scanalyzers . | . . . . . Garrison Access . | . . . . . Data Cores Recovered . | . . . . . Used . | . . . . . Hacking Detections 8 | . 2 . 3 3 Full Trace Events . | . . . . . Feedback Events . | . . . . . Feedback Blocked . | . . . . . Robot Schematics Acquired . | . . . . . Robots Built . | . . . . . Authchips . | . . . . . Time . | . . . . . Total Robot Build Rating . | . . . . . Part Schematics Acquired 4 | . . . 4 . Parts Built . | . . . . . Authchips . | . . . . . Time . | . . . . . Total Part Build Rating . | . . . . . Parts Repaired 2 | . 1 . . 1 Time 76 | . 38 . . 38 Parts Recycled . | . . . . . Recycled Matter 168 | . 168 . . . Retrieved Matter . | . . . . . Retrieved Components . | . . . . . Parts Scanalyzed 5 | . . . 5 . Part Schematics Acquired 4 | . . . 4 . Parts Damaged 1 | . . . 1 . Bothacking | -11 -10 -10 -9 -8 ------------ Run | Scr Mat Min Mat Mat Used RIF Installer . | . . . . . Robots Hacked 1 | . . . . 1 Non-combat . | . . . . . Combat 1 | . . . . 1 Robot Hacks Applied 1 | . . . . 1 parse_system 1 | . . . . 1 Relay Couplers Released . | . . . . . Fabnet Peak Effective % . | . . . . . Robots Rewired . | . . . . . Allies Hacked . | . . . . . Hacks Repelled . | . . . . . Allies | -11 -10 -10 -9 -8 -------- Run | Scr Mat Min Mat Mat Total Allies 2 | . . 2 . . Largest Group 2 | . . 2 2 . Highest-Rated Group 45 | . . 45 45 . Highest-Rated Ally 31 | . . 31 31 . Total Orders . | . . . . . Ally Attacks 22 | . . . 22 . Total Damage 337 | . . . 337 . Kills 8 | . . . 8 . Allies Corrupted . | . . . . . Allies Melted . | . . . . . Intel | -11 -10 -10 -9 -8 ------- Run | Scr Mat Min Mat Mat Robot Analysis Total . | . . . . . Derelict Logs Recovered . | . . . . . Drone Launches . | . . . . . Drone Recoveries . | . . . . . Exploration | -11 -10 -10 -9 -8 ------------- Run | Scr Mat Min Mat Mat Turns Passed 2786 | 182 953 487 486 678 Spaces Moved 1414 | 112 442 241 275 344 Core 17 | 15 . . . 2 Treads . | . . . . . Legs 1397 | 97 442 241 275 342 Wheels . | . . . . . Hover . | . . . . . Flight . | . . . . . Fastest Speed 50 | 50 120 190 120 120 Average Speed 150 | 110 180 190 120 121 Slowest Speed 400 | 120 190 190 120 400 Overloaded Moves . | . . . . . Propulsion Burnouts . | . . . . . Robots Hopped . | . . . . . Cave-ins Triggered . | . . . . . Exploration Rate (%) 33 | 7 53 48 27 33 Regions Visited 4 Branch Regions 1 Pre-discovered Areas . | . . . . . Known Exits Taken 1 | . 1 . . . Unknown Exits Taken 3 | 1 . 1 1 . Scrap Searched 2 | . . 2 . . Spaces Dug . | . . . . . Terrain Destroyed . | . . . . . Melee . | . . . . . Projectile . | . . . . . AOE . | . . . . . Terrain Rammed . | . . . . . Walls Destroyed . | . . . . . Machines Disabled . | . . . . . Actions | -11 -10 -10 -9 -8 --------- Run | Scr Mat Min Mat Mat Total 1873 | 146 552 267 398 510 Wait 204 | 8 46 10 74 66 Move 1410 | 111 441 240 274 344 Hop . | . . . . . Pick Up 56 | 8 22 6 8 12 Fast Attach 4 | . 1 . 3 . Attach 39 | 6 6 1 5 21 Detach 3 | . 1 . 2 . Swap 4 | . . . . 4 Drop 24 | . 6 6 8 4 Fire 80 | 13 29 . 12 26 Melee 48 | . . 3 12 33 Ram . | . . . . . Kick 1 | . . 1 . . Crush . | . . . . . Escape Stasis . | . . . . . Rewire . | . . . . . Trap . | . . . . . Miscellaneous . | . . . . . Route ------- -11/Scrapyard -10/Materials (discovered 3 exits: *Mat / *Min x2) -10/Mines -9/Materials -8/Materials History --------- Turn | Location | Event 2 | -11/Scrapyard | Met Revision 17 74 | -11/Scrapyard | Discovered new exit (range 8) 183 | -11/Scrapyard | Entered Materials 235 | -10/Materials | Identified exit to Mines 313 | -10/Materials | Build established: Mutant 382 | -10/Materials | Discovered new exit (range 15) 972 | -10/Materials | Repaired Imp. Terrain Scanner 1136 | -10/Materials | Entered Mines 1141 | -10/Mines | Met a Derelict who couldn't figure out how to use a Trap Extractor 1606 | -10/Mines | Discovered new exit (range 9) 1623 | -10/Mines | Entered Materials 1623 | -9/Materials | Accompanied by 2 allies 1623 | -9/Materials | Evolved 2 slots: Propulsion x1, Utility x1 1628 | -9/Materials | Led the pair of lost Derelicts to an unsafe place 2066 | -9/Materials | Discovered new exit (range 16) 2109 | -9/Materials | Entered another Materials area 2109 | -8/Materials | Evolved 2 slots: Utility x2 2431 | -8/Materials | Lost 3 parts (3u) 2504 | -8/Materials | Repaired Minigun 2696 | -8/Materials | Lost 5 parts (1n3u1w) 2717 | -8/Materials | Core integrity fell below 50% 2750 | -8/Materials | Lost 8 parts (1p2n2u3w) 2773 | -8/Materials | Core integrity fell below 20% 2787 | -8/Materials | Destroyed by G-47 Trooper with Particle Gun Last Messages --------------- >>parse_system Reading system data... 02719_ Datajack destroyed. 02719_ Melee Analysis Suite destroyed. 02719_ Med. Laser severed. 02725_ Acquired Med. Laser. 02735_ C-17 Slicer destroyed. 02736_ Acquired 19 matter. 02760_ C-17 Slicer destroyed. 02761_ Acquired 25 matter. 02763_ S-10 Pest destroyed. 02764_ Acquired 15 matter. 02764_ Med. Laser destroyed. 02764_ Critical hit (Burn: +37). 02772_ Acquired Lgt. Nuclear Core. 02775_ Shield Generator destroyed. 02778_ Y-45 Defender suffers critical hit (Destroy). 02778_ Destroyed Hvy. Assault Rifle. 02779_ Lgt. Nuclear Core destroyed. 02784_ Y-45 Defender destroyed. Map ----- +----------------------------------------------------+ | ??????????????????????????????????????? | | ??????????????????????????????????????? | | ??????????????????????????????????????? | | ??????????????????????????????????????? | | ??????????????????????????????????????? | | ??????????????????????????????????????? | | ??????????????????????????????????????? | | ??????????????????????????????????????? | | ??????????????????????????????????????? | | ??????????????????????????????????????? | | ??????????????????????????????????????? | | ??????????????????????????????????????? | | ??????????????????????????????????????? | | ??????????????????????????????????????? | | ??????????????????????????????????????? | | ??????????????????????????????????????? | | ????????????#?????????????????????????? | | ?????????????????????????????????????? | | ????????????????????????????????????# | | ??????????????????????????????????? | | ?????????????????????????????????? | | ????????????????????????????????? | | ??????????????????????????????? "" | | ?????###########??????????????? "" | | ?????# =#?? ??????????? "" | | ?????# ! !@###########+### | | ?????# [ s%#= [[] | | ?????# *g=+%! [= [] | | ?????# """ """]#%]=*%= [] | | ?????# """ """=##* ######+#### ###???? | | ?????# """ """ ## ## T # #?????? | | ?????? ## ## """ # #?????? | | ?????############ ## """ # #?????? | | ???????????????? ## """ + #?????? | | ??????????????? ## # #?????? | | ?????????????? ## """ # #?????? | | ?????????????]] ## """ # #?????? | | ???????????? ]! ## """ # ###???? | | ??????????? ]! ## + +???? | | ?????????? ###########/####??? | | ?????????? #???????#= #??? | | ????????? ???????# #??? | | ?????????? = ?????? + """ #??? | | ???????????? ?????### """ #??? | | ??????????????#### ???????# """ ##?? | | ?????????????????? ???????# "##? | | ????????????????????????????#####/##### | | ????????????????????????????#% % # | | ????????????????????????????# # | | ????????????????????????????# % # | +----------------------------------------------------+ Best States ------------- Heat Dissipation 31 Energy Generation 14 Energy Capacity 265 Matter Stores 300 Matter Capacity 300 Sight Range 18 Terrain Scan Range 16 Terrain Scan Density 10 Armor Coverage 300 Utility Shielding 33 Evasion (%) 59 Melee Accuracy 5 Item Schematics ----------------- Disposable Heat Sink | -9/Materials | Scanalyzed Imp. Aluminum Leg | -9/Materials | Scanalyzed Minigun | -9/Materials | Scanalyzed Imp. Terrain Scan Processor | -9/Materials | Scanalyzed Robot Schematics ------------------ None Fabricated ------------ Nothing Alien Tech Used ----------------- None Achievements -------------- Deadly Force Challenges ------------ None Game ------ Seed DecoderShrapnelHumpback Manual? 0 Play Time 01:05:21 Cumulative 3.5 hours Start 2022.04.17 @ 20:29:28 End 2022.04.17 @ 21:38:58 Sessions 1 Manual Loads 0 Difficulty Rogue Special Mode None Game No. 3 Rogue 3 Adventurer 0 Explorer 0 Win Type - Total 0 Types 0/0/0/0/0/0/0/0/0 Lore% 20 Gallery% 11 Achievement% 13 Wizard Run 0 Options --------- ASCII 0 Keyboard 0 Movement Numpad Keybinds 0 Fullscreen 1 Font 24/Smallcaps Map View 76x50 Tactical HUD 1 Map Filters NONE Filters NONE Steam 1 RUN: 971930c8-cca2-4810-9c92-84d0d121ed87